{"text_format":"3","workbook":"xlsx","n_sheets":1,"sheets":["PRICING SCHEDULE"],"not_rendered":{"images":1,"defined_names":3},"read":"whole","date_system":"1900"}

{"sheet":"PRICING SCHEDULE","index":0,"n_rows":99,"n_cols":14,"rows_kept":99,"merged":[[2,1,2,4],[3,1,3,4],[4,1,4,4],[12,2,12,3],[13,2,13,3],[13,5,15,5],[13,6,15,6],[14,2,14,3],[15,2,15,3],[17,8,17,10],[19,0,19,4],[21,0,21,8],[38,0,38,8],[54,0,54,8],[75,0,75,8],[95,1,98,5],[95,6,95,7],[95,8,95,9],[96,6,96,7],[96,8,96,9],[97,6,97,7],[97,8,97,9],[98,6,98,7],[98,8,98,9]]}
[null,"SUPPLY CHAIN MANAGEMENT"]
[null,"Pricing schedule"]
["RFx No","RFB 3276-2026 (ERP No: 483011)"]
["RFx Title"," Supply and delivery of Cisco LAN Infrastructure equipment with Cisco support for a period of five (5) years for the Western Cape Government (WCG), Department: Premier (Branch centre for e-Innovation)."]
["Bidder Name "]
[]
["1. INSTRUCTION FOR COMPLETING THE PRICING SCHEDULE"]
["(a)  THIS PRICING SCHEDULE MUST BE SUBMITTED SEPARATELY FROM THE TECHNICAL RESPONSE, failing which the BID may be DISQUALIFIED."]
["(b)  Bidder must complete/enter YELLOW cells only"]
["(c)  Unit and Line prices must be VAT EXCLUSIVE and in South African Rand (ZAR) currency."]
["(e) The price must include all cost to deliver the goods or render the service, including all applicable taxes, duty fees, logistics/delivery, storage, labour, overtime and subsistance and travel"]
["(f)  Prices that are dependent on Rate of Exchange (ROE) must use ROE indicated below, then enter in Column \"Forex %\" the percentage of the price that is ROE dependent (0% means the price is not ROE dependent)"]
[null,"Foreign currency","South African Rand (ZAR) exchange rate "]
[null,"1 US Dollar",{"v":16.14,"d":"R16.14"},null,null,"Mark with an X, which ROE is applicable"]
[null,"1 Euro",{"v":18.69,"d":"R18.69"}]
[null,"1 Pound (UK)",{"v":21.81,"d":"R21.81"}]
[]
[]
["Item No","Part Number","Goods/Service description",{"$nulls":3},"Unit of measure","Forex %","Qty ","Unit Price \n(Excl VAT)","Line Price Y1","Forex Price portion","BRAND / MODEL (if applicable)","Price clarification comment"]
["Supply and delivery of Cisco LAN Infrastructure equipment with Cisco support for a period of five (5) years for the Western Cape Government (WCG), Department: Premier (Branch centre for e-Innovation).",{"$nulls":9}," "]
["Line number ","Part Number","Smart Account mandatory ","Description ","Service duration - Months ","Estimated lead times"]
["Group Name: Catalyst 9500 - Distribution / Core Switch"]
["1.0","C9500-48Y4C-A","-","Catalyst 9500 48-port x 1/10/25G + 4-port 40/100G, Advantage","---",14,null,{"v":0,"d":"0%"},5,0,{"$f":"(I23*J23)","v":0},{"$f":"H23*K23","v":0}]
["1.0.1","CON-L1NCD-C9504YA4","-","CX LEVEL 1 8X7NCDCatalyst 9500 48port x 11025G  4por",60,"N/A",null,{"v":0,"d":"0%"},5,0,{"$f":"(I24*J24)","v":0},{"$f":"H24*K24","v":0}]
["1.1","C9500-DNA-48Y4C-A","Yes","C9500 DNA Advantage, Term License","---",14,null,{"v":0,"d":"0%"},5,0,0,0]
["1.1.0.1","CON-L1SWT-C9548Y4A","-","CX LEVEL 1 SW SUB CX LEVEL 1 SW SUB C9",60,"N/A",null,{"v":0,"d":"0%"},5,0,0,0]
["1.1.1","C9500-DNA-A-5Y","-","DNA Advantage 5 Year License",60,"N/A",null,{"v":0,"d":"0%"},5,0,0,0]
["1.2","CAB-C13-CBN","-","Cabinet Jumper Power Cord, 250 VAC 10A, C14-C13 Connectors","---",7,null,{"v":0,"d":"0%"},10,0,0,0]
["1.3","C9K-PWR-650WAC-R","-","650W AC Config 4 Power Supply front to back cooling","---",14,null,{"v":0,"d":"0%"},5,0,0,0]
["1.4","C9K-PWR-650WAC-R/2","-","650W AC Config 4 Power Supply front to back cooling","---",14,null,{"v":0,"d":"0%"},5,0,0,0]
["1.5","C9K-F1-SSD-BLANK","-","Cisco pluggable SSD storage","---",14,null,{"v":0,"d":"0%"},5,0,0,0]
["1.6","C9K-T1-FANTRAY","-","Catalyst 9500 Type 4 front to back cooling Fan","---",14,null,{"v":0,"d":"0%"},10,0,0,0]
["1.7","C9500-NW-A","Yes","C9500 Network Stack, Advantage","---",14,null,{"v":0,"d":"0%"},5,0,0,0]
["1.8","S9500UK9-1715","-","CAT9300/9400/9500/9600 UNIVERSAL","---",14,null,{"v":0,"d":"0%"},5,0,0,0]
["1.9","C9500-SSD-NONE","-","No SSD Card Selected","---",14,null,{"v":0,"d":"0%"},5,0,0,0]
["1.10","CAB-CONSOLE-USB","-","Console Cable 6ft with USB Type A and mini-B","---",14,null,{"v":0,"d":"0%"},5,0,0,0]
["1.11","C9500-RFID","-","RFID Selected","---",14,null,{"v":0,"d":"0%"},5,0,0,0]
["1.12","NETWORK-PNP-LIC","Yes","Network Plug-n-Play Connect for zero-touch device deployment","---",2,null,{"v":0,"d":"0%"},5,0,0,0]
["Group Name: Wireless Access Points"]
[2,"CW9164I-ROW","-","Catalyst 9164I AP (W6E, tri-band 4x4) w/Reg-ROW","---",28,null,{"v":0,"d":"0%"},55,0,0,0]
["2.0.1","CON-L1NCD-CW9164RW","-","CX LEVEL 1 8X7NCD Catalyst 9164I AP (W6E, tri-band 4x4) w",60,"N/A",null,{"v":0,"d":"0%"},55,0,0,0]
[2.1,"SW9164-CAPWAP-K9","-","Capwap software for Catalyst 9164I","---",28,null,{"v":0,"d":"0%"},55,0,0,0]
[2.2,"AIR-AP-T-RAIL-R","-","Ceiling Grid Clip for APs & Cellular Gateways-Recessed","---",21,null,{"v":0,"d":"0%"},55,0,0,0]
[2.3,"AIR-AP-BRACKET-1","-","802.11 AP Low Profile Mounting Bracket (Default)","---",21,null,{"v":0,"d":"0%"},55,0,0,0]
[2.4,"NETWORK-PNP-LIC","Yes","Network Plug-n-Play Connect for zero-touch device deployment","---",2,null,{"v":0,"d":"0%"},55,0,0,0]
[2.5,"CW9164I-MULTI","-","Minimum Quantity = 10","---",21,null,{"v":0,"d":"0%"},55,0,0,0]
[2.6,"CDNA-E-C9164","-","Wireless Cisco DNA  On-Prem Essential, 9164 Tracking","---",28,null,{"v":0,"d":"0%"},55,0,0,0]
["2.6.1","DNA-E-5Y-C9164","-","C9164I Cisco DNA On-Prem Essential,5Y Term,Trk Lic",60,"N/A",null,{"v":0,"d":"0%"},55,0,0,0]
[2.7,"AIR-DNA-E","-","Wireless Cisco DNA On-Prem Essential, Term Lic","---",2,null,{"v":0,"d":"0%"},55,0,0,0]
["2.7.0.1","CON-L1SWT-AIRDNAE","-","CX LEVEL 1 SW SUB Aironet CISCO DNA Es",60,"N/A",null,{"v":0,"d":"0%"},55,0,0,0]
["2.7.1","AIR-DNA-E-5Y","-","Wireless Cisco DNA On-Prem Essential, 5Y Term Lic",60,"N/A",null,{"v":0,"d":"0%"},55,0,0,0]
[2.8,"AIR-DNA-E-T","Yes","Wireless Cisco DNA On-Prem Essential, Term, Tracker Lic","---",6,null,{"v":0,"d":"0%"},55,0,0,0]
["2.8.1","AIR-DNA-E-T-5Y","-","Wireless Cisco DNA On-Prem Essential, 5Y Term, Tracker Lic",60,"N/A",null,{"v":0,"d":"0%"},55,0,0,0]
[2.9,"AIR-DNA-NWSTACK-E","Yes","Wireless DNA Perpetual Network Stack - Essentials","---",2,null,{"v":0,"d":"0%"},55,0,0,0]
["Group Name: Catalyst 9300 Access Switch Options"]
[3,"C9300L-48P-4X-E","-","Catalyst 9300L 48p PoE, Network Essentials ,4x10G Uplink","---",14,null,{"v":0,"d":"0%"},3,0,0,0]
["3.0.1","CON-L1NCD-C93004X4","-","CX LEVEL 1 8X7NCDCatalyst 9300L 48p PoE Network Essentia",60,"N/A",null,{"v":0,"d":"0%"},3,0,0,0]
[3.1,"C9300L-DNA-E-48","Yes","C9300L Cisco DNA Essentials, 48-port license","---",14,null,{"v":0,"d":"0%"},3,0,0,0]
["3.1.0.1","CON-L1SWT-C93LE48","-","CX LEVEL 1 SW SUB C9300L Cisco DNA Ess",60,"N/A",null,{"v":0,"d":"0%"},3,0,0,0]
["3.1.1","C9300L-DNA-E-48-5Y","-","C9300L Cisco DNA Essentials, 48-port, 5 Year Term license",60,"N/A",null,{"v":0,"d":"0%"},3,0,0,0]
[3.2,"S9300LUK9-1718","-","CAT9300/9400/9500/9600 UNIVERSAL","---",14,null,{"v":0,"d":"0%"},3,0,0,0]
[3.3,"C9300L-NW-E-48","Yes","C9300L Network Essentials, 48-port license","---",14,null,{"v":0,"d":"0%"},3,0,0,0]
[3.4,"PWR-C1-BLANK","-","Config 1 Power Supply Blank","---",14,null,{"v":0,"d":"0%"},3,0,0,0]
[3.5,"C9300L-STACK-BLANK","-","Catalyst 9300L Blank Stack Module","---",14,null,{"v":0,"d":"0%"},6,0,0,0]
[3.6,"FAN-T2","-","Cisco Type 2 Fan Module","---",14,null,{"v":0,"d":"0%"},9,0,0,0]
[3.7,"PWR-C1-715WAC-P","-","715W AC 80+ platinum Config 1 Power Supply","---",14,null,{"v":0,"d":"0%"},3,0,0,0]
[3.8,"C9300L-SPS-NONE","-","No Secondary Power Supply Selected","---",14,null,{"v":0,"d":"0%"},3,0,0,0]
[3.9,"CAB-C15-CBN","-","Cabinet Jumper Power Cord, 250 VAC 13A, C14-C15 Connectors","---",7,null,{"v":0,"d":"0%"},3,0,0,0]
[3.1,"C9300L-SSD-NONE","-","No SSD Card Selected","---",14,null,{"v":0,"d":"0%"},3,0,0,0]
[3.11,"C9K-ACC-RBFT","-","RUBBER FEET FOR TABLE TOP SETUP 9200 and 93xx","---",14,null,{"v":0,"d":"0%"},3,0,0,0]
[3.12,"C9K-ACC-SCR-4","-","12-24 and 10-32 SCREWS FOR RACK INSTALLATION, QTY 4","---",14,null,{"v":0,"d":"0%"},3,0,0,0]
[3.13,"CAB-GUIDE-1RU","-","1RU CABLE MANAGEMENT GUIDES 9200 and 9300","---",14,null,{"v":0,"d":"0%"},3,0,0,0]
[3.14,"C9K-NONE","-","Smart Building Application Opt Out SKU","---",14,null,{"v":0,"d":"0%"},3,0,0,0]
[3.15,"NETWORK-PNP-LIC","Yes","Network Plug-n-Play Connect for zero-touch device deployment","---",2,null,{"v":0,"d":"0%"},3,0,0,0]
[4,"SFP-10G-SR-S=","-","10GBASE-SR SFP Module, Enterprise-Class","---",17,null,{"v":0,"d":"0%"},6,0,0,0]
["Group Name: Catalyst 9200 Access Switch Options"]
[5,"C9200L-48P-4X-E","-","Catalyst 9200L 48-port PoE+, 4 x 10G, Network Essentials","---",14,null,{"v":0,"d":"0%"},24,0,0,0]
["5.0.1","CON-L1NCD-C9200L4X","-","CX LEVEL 1 8X7NCDCatalyst 9200L 48port PoE 4 x 10G Ne",60,"N/A",null,{"v":0,"d":"0%"},24,0,0,0]
[5.1,"C9200L-DNA-E-48","Yes","C9200L Cisco DNA Essentials, 48-port Term license","---",14,null,{"v":0,"d":"0%"},24,0,0,0]
["5.1.0.1","CON-L1SWT-C92LE48","-","CX LEVEL 1 SW SUB C9200L Cisco DNA Ess",60,"N/A",null,{"v":0,"d":"0%"},24,0,0,0]
["5.1.1","C9200L-DNA-E-48-5Y","-","C9200L Cisco DNA Essentials, 48-port, 5 Year Term license",60,"N/A",null,{"v":0,"d":"0%"},24,0,0,0]
[5.2,"C9200L-NW-E-48","Yes","C9200L Network Essentials, 48-port license","---",14,null,{"v":0,"d":"0%"},24,0,0,0]
[5.3,"CAB-TA-IN","-","India AC Type A Power Cable","---",14,null,{"v":0,"d":"0%"},24,0,0,0]
[5.4,"PWR-C5-BLANK","-","Config 5 Power Supply Blank","---",14,null,{"v":0,"d":"0%"},24,0,0,0]
[5.5,"C9K-ACC-RBFT","-","RUBBER FEET FOR TABLE TOP SETUP 9200 and 93xx","---",14,null,{"v":0,"d":"0%"},24,0,0,0]
[5.6,"C9K-ACC-SCR-4","-","12-24 and 10-32 SCREWS FOR RACK INSTALLATION, QTY 4","---",14,null,{"v":0,"d":"0%"},24,0,0,0]
[5.7,"CAB-GUIDE-1RU","-","1RU CABLE MANAGEMENT GUIDES 9200 and 9300","---",14,null,{"v":0,"d":"0%"},24,0,0,0]
[5.8,"NETWORK-PNP-LIC","Yes","Network Plug-n-Play Connect for zero-touch device deployment","---",2,null,{"v":0,"d":"0%"},24,0,{"$f":"(I88*J88)","v":0},{"$f":"H88*K88","v":0}]
[5.9,"C9200-STACK-BLANK","-","Catalyst 9200 Blank Stack Module","---",14,null,{"v":0,"d":"0%"},48,0,0,0]
[6,"SFP-10G-SR-S=","-","10GBASE-SR SFP Module, Enterprise-Class","---",17,null,{"v":0,"d":"0%"},48,0,0,0]
[null,"TOTAL BID PRICE  (EXCL VAT)",{"$nulls":8},{"$f":"SUM(K23:K90)","v":0},{"$f":"SUBTOTAL(9,L23:L90)","v":0}]
[null,"VAT (@15%)",{"$nulls":8},{"$f":"K91*0.15","v":0}]
[null,"TOTAL  BID PRICE (INCL VAT)",{"$nulls":8},{"$f":"K91+K92","v":0}]
[]
[]
[null,"I, the bidder, confirm that the price(s) and rate(s) quoted cover all the goods and/or works specified in the bidding documents; that the price(s) or rate(s) cover all my obligations and I accept that any mistakes regarding price(s), rate(s) or calculations will be at my own risk.\n[Note: First convert to PDF, then add signature]"]
[{"$nulls":6},"Name",null,"Capacity"]
[]
[{"$nulls":6},"Signature (above)",null,"Date"]